Cogmind - Beta 17.1 @@@ ROGUE MODE // 2026.08.31 @ 00:13:42 Player: thingimabob Result: Destroyed by AT-8KD(x) with Makeshift Spear Performance ------------- Evolutions (1) 500 Regions Visited (5) 1000 Robots Destroyed (90) 450 Value Destroyed (2488) 2488 Prototype IDs (10) 200 Alien Tech Used (0) 0 Bonus (371) 371 TOTAL SCORE: 5009 Bonus ------- High Alert Combat Kills 71 Registered with UFD 300 Cogmind --------- Core Integrity 0/400 Matter 295/300 Energy 236/240 System Corruption 0% Temperature Cool (0) Movement Treading (320) Ox2 Location -9/Scraptown Parts ------- > --- POWER (1) -------- Nuclear Core > --- PROPULSION (2) --- Improved Treads Armored Wheel > --- UTILITY (2) ------ High-capacity Storage Unit Matter Filter > --- WEAPON (4) ------- Heavy Assault Rifle Autogun Mining Claw > --- INVENTORY (20) --- Improved Ion Engine Light Treads Light Treads Light Treads Improved Treads Cooling System Medium Matter Pod (100) Improved Targeting Computer Improved Targeting Computer Improved Targeting Computer Light Armor Plating Light Armor Plating Hardened Light Armor Plating Hacking Suite Mapping Drone Bay (3/3) Improved Assault Rifle Improved Assault Rifle Improved Assault Rifle Improved Assault Rifle Rocket Launcher Peak State ------------ > --- POWER ------------ Nuclear Core > --- PROPULSION ------- Improved Treads Armored Wheel > --- UTILITY ---------- High-capacity Storage Unit Matter Filter > --- WEAPON ----------- Heavy Assault Rifle Heavy Assault Rifle Improved Assault Rifle Improved Assault Rifle > --- INVENTORY -------- Light Treads Light Treads Light Treads Light Treads Improved Treads Cooling System Medium Matter Pod Improved Targeting Computer Improved Targeting Computer Light Armor Plating Light Armor Plating Light Armor Plating Hacking Suite Hacking Suite Authchip [Propulsion] Authchip [Device] Improved Assault Rifle Improved Assault Rifle Improved Assault Rifle Rocket Launcher [Rating: 26] Favorites ----------- Power Nuclear Core Engine Ion Engine Power Core Nuclear Core Propulsion Improved Treads Treads Improved Treads Wheel Wheel Utility High-capacity Storage Unit Device Matter Filter Storage High-capacity Storage Unit Hackware Authchip [Armor] Protection Light Armor Plating Weapon Heavy Assault Rifle Ballistic Gun Heavy Assault Rifle Launcher Rocket Launcher Slashing Weapon Mining Claw Build | -11 -10 -9 -9 -9 -9 ------- Run | Yrd Mat Mat Sto Rec Scr Slots Evolved 2 | . . 2 . . . Power . | . . . . . . Propulsion . | . . . . . . Utility . | . . . . . . Weapon 2 | . . 2 . . . Parts Attached 50 | 7 5 17 14 3 4 Power 6 | 1 . 3 1 1 . Engine 3 | 1 . 2 . . . Core 3 | . . 1 1 1 . Reactor . | . . . . . . Propulsion 12 | 2 2 4 3 . 1 Treads 7 | 1 1 2 3 . . Leg . | . . . . . . Wheel 5 | 1 1 2 . . 1 Hover . | . . . . . . Flight . | . . . . . . Utility 10 | 2 1 2 3 1 1 Device 3 | 1 . 1 . . 1 Storage 2 | 1 1 . . . . Processor . | . . . . . . Hackware 1 | . . . . 1 . Protection 4 | . . 1 3 . . Artifact . | . . . . . . Weapon 22 | 2 2 8 7 1 2 Energy Gun . | . . . . . . Energy Cannon . | . . . . . . Ballistic Gun 20 | 2 2 8 6 1 1 Ballistic Cannon . | . . . . . . Launcher 1 | . . . 1 . . Special Weapon . | . . . . . . Impact Weapon . | . . . . . . Slashing Weapon 1 | . . . . . 1 Piercing Weapon . | . . . . . . Special Melee Weapon . | . . . . . . Unidentified Prototypes 1 | . . . 1 . . Corrupted Parts 1 | . . . . 1 . System Corruption 1 | . . . . 1 . Parts Lost 16 | . 5 6 3 1 1 Power 4 | . . 2 1 1 . Propulsion 4 | . 2 . 2 . . Utility 2 | . 1 1 . . . Weapon 6 | . 2 3 . . 1 Highest Loss Streak 5 | . 5 2 3 1 1 To Critical Strikes . | . . . . . . Average Backups 17 | 2 10 15 19 19 19 Power . | . 1 1 1 . . Propulsion 4 | 1 3 5 5 5 4 Utility 8 | . 3 5 9 10 10 Weapon 3 | . 2 2 3 4 4 Tool/Special . | . . . . . . Unused Backups 28 | . . . 5 . 23 Power 1 | . . . . . 1 Propulsion 6 | . . . 2 . 4 Utility 16 | . . . 1 . 15 Weapon 5 | . . . 2 . 3 Tool/Special . | . . . . . . Average Slot Usage (%) 98 | . 98 98 99 100 97 Engine 3 | . 14 6 2 . . Core 7 | . . 4 8 11 11 Treads 11 | . 14 11 11 11 11 Wheel 11 | . 13 11 10 11 11 Device 7 | . 13 10 . . 8 Storage 11 | . 14 11 11 11 11 Protection 2 | . . . 11 6 . Ballistic Gun 42 | . 27 43 43 44 43 Peak Build Rating 26 | 7 8 15 21 25 26 Average Rating 18 | 5 7 11 18 22 24 On Entrance 12 | . 7 7 15 21 25 Avg Prop Armor Cover (%) 8 | 13 13 9 6 7 7 Naked Turns . | . . . . . . Heaviest Build 63 | 14 49 62 63 62 62 Greatest Support 23 | 20 16 16 20 23 12 Greatest Overweight (x) 6 | . 3 3 6 6 6 Average Overweight (x) 4 | . 2 2 5 5 5 Largest Inventory Capacity 20 | 8 20 20 20 20 20 Average Capacity 19 | 7 19 20 20 20 20 Most Carried 20 | 4 14 20 20 20 20 Average Carried 17 | 2 10 15 19 19 19 Final Capacity 20 | 8 20 20 20 20 20 Final Carried 20 | 4 10 19 20 20 20 Class Distribution -------------------- 43% | Gunner 13% | Scavenger-Skirmisher 11% | Scavenger-Tank 11% | Mutant 11% | Tank 8% | Skirmisher Dominant Class ---------------- Mutant | -10/Materials Scavenger-Skirmisher | -9/Materials Scavenger-Tank | -9/Storage Tank | -9/Recycling Gunner | -9/Scraptown Resources | -11 -10 -9 -9 -9 -9 ----------- Run | Yrd Mat Mat Sto Rec Scr Matter Collected 2314 | 294 310 678 829 173 30 Remotely . | . . . . . . Salvage Created 3794 | 104 539 1390 1442 319 . Parts 226 | 6 25 86 90 19 . Haulers Intercepted 11 | . 2 3 6 . . Recyclers Shooed . | . . . . . . Parts Field Recycled . | . . . . . . Retrieved Matter . | . . . . . . Parts Self-Destructed . | . . . . . . Prevented . | . . . . . . Parts Restored . | . . . . . . Kills | -11 -10 -9 -9 -9 -9 ------- Run | Yrd Mat Mat Sto Rec Scr Combat Hostiles Destroyed 66 | . 10 25 25 6 . Guns 63 | . 10 25 22 6 . AOE 3 | . . . 3 . . Classes Destroyed 13 | 2 2 7 . 2 . Builder 4 | . . 3 . 1 . Tunneler 1 | 1 . . . . . Hauler 11 | . 2 3 6 . . Recycler 1 | 1 . . . . . Operator 3 | . . 1 2 . . Watcher 4 | . . 3 1 . . Swarmer 12 | . . 9 3 . . Grunt 25 | . 10 5 10 . . Brawler 2 | . . 2 . . . Duelist 1 | . . 1 . . . Sentry 24 | . . 8 12 4 . Demolisher 1 | . . . . 1 . Programmer 1 | . . . . 1 . Best Kill Streak 6 | 2 3 6 5 3 . Combat Bots Only 5 | . 3 5 5 3 . Max Kills in Single Turn 2 | 1 1 2 2 1 . Gunslinging 1 | . . 1 . . . Exploded 2 | . . . 2 . . Melee . | . . . . . . Uniques/NPCs Destroyed . | . . . . . . Combat | -11 -10 -9 -9 -9 -9 -------- Run | Yrd Mat Mat Sto Rec Scr Hostile Shots Fired 321 | . 67 122 77 32 23 Missed 74 | . 13 25 23 11 2 Hits 247 | . 54 97 54 21 21 Melee 17 | . . 5 . . 12 Projectile 230 | . 54 92 54 21 9 AOE 2 | . . . . 2 . Critical Strikes 7 | . 1 2 2 . 2 Damage Taken 3484 | . 645 1227 819 337 456 Core 570 | . 111 207 57 29 166 Absorbed by Shields . | . . . . . . Core Remaining (%) 77 | 100 55 . . . . Volleys Fired 192 | 6 47 74 54 11 . Largest 4 | 2 2 4 4 4 . Hottest 92 | 40 40 89 92 92 . Shots Fired 653 | 12 94 294 211 42 . Gun 651 | 12 94 294 209 42 . Cannon . | . . . . . . Launcher 2 | . . . 2 . . Special . | . . . . . . Kinetic 651 | 12 94 294 209 42 . Thermal . | . . . . . . Explosive 2 | . . . 2 . . Electromagnetic . | . . . . . . Robot Hit Streak 28 | 4 9 28 17 11 . Robot Miss Streak 4 | 1 3 4 3 4 . Penetration Max . | . . . . . . Secondary Targets 12 | . 1 5 3 3 . Max Gunslinging Chain 1 | . 1 1 1 1 . Shots Hit Robots 426 | 7 65 186 139 28 1 Core Hits 168 | 3 28 67 56 14 . Critical Kills 2 | . . 1 1 . . Critical Parts Destroyed 3 | . . 2 1 . . Critical Strikes 6 | . . 3 3 . . Destroy 6 | . . 3 3 . . Melee Attacks 5 | . . . . . 5 Impact . | . . . . . . Slashing 5 | . . . . . 5 Piercing . | . . . . . . Sneak Attacks . | . . . . . . Combat Hostiles . | . . . . . . Follow-up Attacks . | . . . . . . Damage Inflicted 5660 | 79 718 2085 2267 505 6 Guns 5432 | 79 712 2078 2058 505 . Cannons . | . . . . . . Explosions 209 | . . . 209 . . Melee 6 | . . . . . 6 Ramming 13 | . 6 7 . . . Kinetic 5432 | 79 712 2078 2058 505 . Thermal . | . . . . . . Explosive 209 | . . . 209 . . Electromagnetic . | . . . . . . Impact . | . . . . . . Slashing 6 | . . . . . 6 Piercing . | . . . . . . Highest Corruption 2 | . . . 1 2 2 Average Corruption 1 | . . . 1 1 2 Corruption Purged . | . . . . . . Corruption Blocked . | . . . . . . Effects 24 | . . . 10 14 . Message Errors 6 | . . . 3 3 . Matter Fused 5 | . . . 2 3 . Heat Flow Errors 3 | . . . 1 2 . Energy Discharges 3 | . . . 1 2 . Parts Fused 1 | . . . 1 . . Data Loss (minor) 3 | . . . 1 2 . Misfires 1 | . . . 1 . . Weapon Failures 2 | . . . . 2 . Overload Shots . | . . . . . . Overflow Damage . | . . . . . . Projectiles . | . . . . . . Explosions . | . . . . . . Melee . | . . . . . . Knockbacks . | . . . . . . Impact . | . . . . . . Kinetic . | . . . . . . Secondary . | . . . . . . Self-Inflicted Damage . | . . . . . . Shots . | . . . . . . Rammed 3 | . 2 1 . . . Targets Rammed 3 | . 2 1 . . . Kicked . | . . . . . . Crushed . | . . . . . . Highest Temperature 216 | . 24 186 154 216 . Average Temperature 49 | . 8 56 47 70 . Received Heat Transfer 984 | . 372 240 315 57 . Siege Activations . | . . . . . . Martial Activations . | . . . . . . Shielding Activations . | . . . . . . Robots Disrupted . | . . . . . . Combat Hostiles . | . . . . . . Robots Corrupted . | . . . . . . Combat Hostiles . | . . . . . . Parts Fried . | . . . . . . Impact Corruptions . | . . . . . . Robots Melted . | . . . . . . Combat Hostiles . | . . . . . . Parts Melted . | . . . . . . Heat Transferred . | . . . . . . Parts Sabotaged . | . . . . . . Parts Stolen . | . . . . . . Parts Stripped . | . . . . . . Power Chain Reactions . | . . . . . . Alert | -11 -10 -9 -9 -9 -9 ------- Run | Yrd Mat Mat Sto Rec Scr Maximum Alert Level 2 | . . 1 2 . . Low Security (%) 67 | 100 100 74 1 100 . Level 1 24 | . . 25 64 . . Level 2 8 | . . . 34 . . Level 3 . | . . . . . . Level 4 . | . . . . . . Level 5 . | . . . . . . High Security . | . . . . . . Max Security . | . . . . . . Peak Influence 496 | 10 76 381 496 183 . Initial 183 | . . 7 159 183 . Average 125 | 1 20 87 374 13 . Influence Increases 2048 | 10 265 829 819 125 . Destroy 0b10 Robot/C 1320 | . 200 500 500 120 . Destroy 0b10 Robot/NC 135 | 10 10 65 45 5 . Destroy Leader 380 | . 44 152 184 . . Successful Hack 67 | . 11 33 23 . . Destroy Structure 26 | . . 4 22 . . Partial Spotted 15 | . . 15 . . . Lose Combat Pursuer 105 | . . 60 45 . . Influence Decreases 2048 | 10 247 469 727 595 . Entered New Map 517 | . . 11 219 287 . Time Decay 1239 | 10 197 406 478 148 . Lost Part 142 | . 50 52 30 10 . Purge Threat 150 | . . . . 150 . Squads Dispatched 10 | . 3 1 6 . . Investigation 2 | . 1 . 1 . . Extermination . | . . . . . . Reinforcement 5 | . 2 1 2 . . Assault . | . . . . . . Garrison 3 | . . . 3 . . Intercept . | . . . . . . Searches Triggered . | . . . . . . Construction Impeded 1 | . . 1 . . . Haulers Reinforced . | . . . . . . Active Scanning Responses . | . . . . . . Cargo Convoy Interrupts . | . . . . . . Stealth | -11 -10 -9 -9 -9 -9 --------- Run | Yrd Mat Mat Sto Rec Scr Distress Signals 9 | . 1 4 4 . . Communications Jammed . | . . . . . . Distress Signals . | . . . . . . Times Spotted 94 | . 12 39 33 7 3 Peak Tracking Total 5 | . 5 5 4 3 4 Tactical Retreats 7 | . . 4 3 . . Traps | -11 -10 -9 -9 -9 -9 ------- Run | Yrd Mat Mat Sto Rec Scr Traps Triggered 7 | . 1 . 6 . . Indirectly . | . . . . . . Trap Hack Attempts . | . . . . . . Triggered . | . . . . . . Disarmed . | . . . . . . Reprogrammed . | . . . . . . Reused . | . . . . . . Traps Extracted . | . . . . . . Installed . | . . . . . . Triggered . | . . . . . . Machines | -11 -10 -9 -9 -9 -9 ---------- Run | Yrd Mat Mat Sto Rec Scr Machines Disabled . | . . . . . . Max in Single Turn . | . . . . . . Machines Repaired . | . . . . . . Machines Dismantled . | . . . . . . Machines Sabotaged . | . . . . . . Overloaded Fab Kills . | . . . . . . Hacking | -11 -10 -9 -9 -9 -9 --------- Run | Yrd Mat Mat Sto Rec Scr Machines Accessed 21 | . 2 6 6 3 4 Terminals 15 | . 2 4 6 3 . Fabricators . | . . . . . . Repair Stations . | . . . . . . Recycling Units 1 | . . 1 . . . Scanalyzers 1 | . . 1 . . . Garrison Access . | . . . . . . Total Hacks 71 | . 8 18 12 9 24 Successful 45 | . 4 10 5 2 24 Failed 25 | . 4 7 7 7 . Catastrophic 6 | . 1 1 3 1 . Database Lockouts 1 | . . 1 . . . Manual 16 | . 6 3 7 . . Terminals 38 | . 8 9 12 9 . Fabricators . | . . . . . . Repair Stations . | . . . . . . Recycling Units 4 | . . 4 . . . Scanalyzers 5 | . . 5 . . . Garrison Access . | . . . . . . Terminal Hacks 41 | . 4 6 5 2 24 Record 23 | . . . . . 23 Part Schematic 1 | . . . 1 . . Robot Analysis 2 | . 2 . . . . Prototype ID Bank 2 | . 1 1 . . . Open Door 2 | . . . 2 . . Emergency Access Points 3 | . 1 2 . . . Unreport Threat 1 | . . . . 1 . Locate Traps 1 | . . . 1 . . Transport Status 1 | . . 1 . . . Hauler Manifests 2 | . . 1 . 1 . Zone Layout 2 | . . 1 1 . . Proto ID Catalog 1 | . . . . . 1 Fabricator Hacks . | . . . . . . Repair Station Hacks . | . . . . . . Recycling Unit Hacks 1 | . . 1 . . . Retrieve Components 1 | . . 1 . . . Scanalyzer 3 | . . 3 . . . Retrieve Study 3 | . . 3 . . . Garrison Access Hacks . | . . . . . . Unauthorized Hacks . | . . . . . . Terminals . | . . . . . . Fabricators . | . . . . . . Repair Stations . | . . . . . . Recycling Units . | . . . . . . Scanalyzers . | . . . . . . Garrison Access . | . . . . . . Data Cores Recovered 2 | . . 1 1 . . Used 2 | . . 1 1 . . Hacking Detections 15 | . 2 5 5 3 . Full Trace Events 2 | . . . 1 1 . Feedback Events . | . . . . . . Feedback Blocked . | . . . . . . Robot Schematics Acquired . | . . . . . . Robots Built . | . . . . . . Authchips . | . . . . . . Time . | . . . . . . Total Robot Build Rating . | . . . . . . Part Schematics Acquired 1 | . . . 1 . . Parts Built . | . . . . . . Authchips . | . . . . . . Time . | . . . . . . Total Part Build Rating . | . . . . . . Part Studies Acquired 3 | . . 3 . . . Parts Repaired . | . . . . . . Time . | . . . . . . Parts Recycled . | . . . . . . Recycled Matter . | . . . . . . Retrieved Matter . | . . . . . . Retrieved Components 7 | . . 7 . . . Parts Scanalyzed . | . . . . . . Part Schematics Acquired . | . . . . . . Parts Damaged . | . . . . . . Bothacking | -11 -10 -9 -9 -9 -9 ------------ Run | Yrd Mat Mat Sto Rec Scr Used RIF Installer . | . . . . . . Robots Hacked . | . . . . . . Non-combat . | . . . . . . Combat . | . . . . . . Robot Hacks Applied . | . . . . . . Relay Couplers Released . | . . . . . . Fabnet Peak Effective % . | . . . . . . Robots Rewired . | . . . . . . Allies Hacked . | . . . . . . Hacks Repelled . | . . . . . . Allies | -11 -10 -9 -9 -9 -9 -------- Run | Yrd Mat Mat Sto Rec Scr Total Allies . | . . . . . . Largest Group . | . . . . . . Highest-Rated Group . | . . . . . . Highest-Rated Ally . | . . . . . . Total Orders . | . . . . . . Ally Attacks . | . . . . . . Total Damage . | . . . . . . Kills . | . . . . . . Allies Corrupted . | . . . . . . Allies Melted . | . . . . . . Intel | -11 -10 -9 -9 -9 -9 ------- Run | Yrd Mat Mat Sto Rec Scr Active Infowar (turns) 2709 | 15 853 1841 . . . Sensors 1841 | . . 1841 . . . Seismic 868 | 15 853 . . . . Robot Analysis Total 2 | . 2 . . . . Derelict Logs Recovered . | . . . . . . Drone Launches . | . . . . . . Drone Recoveries . | . . . . . . Exploration | -11 -10 -9 -9 -9 -9 ------------- Run | Yrd Mat Mat Sto Rec Scr Turns Passed 8458 | 81 907 1983 1230 1106 3151 Spaces Moved 4723 | 51 406 1151 575 645 1895 Core 6 | 6 . . . . . Treads 8 | 3 . . 4 1 . Legs . | . . . . . . Wheels 4709 | 42 406 1151 571 644 1895 Hover . | . . . . . . Flight . | . . . . . . Fastest Speed 50 | 50 100 130 145 155 155 Average Speed 156 | 97 139 144 165 163 164 Slowest Speed 320 | 160 145 145 320 320 170 Overloaded Moves . | . . . . . . Propulsion Burnouts . | . . . . . . Robots Hopped . | . . . . . . Potential Cave-ins . | . . . . . . Cave-ins Triggered . | . . . . . . Exploration Rate (%) 68 | 3 67 75 76 99 91 Regions Visited 5 Branch Regions 3 Pre-discovered Areas 6 | . . . . . 6 Known Exits Taken . | . . . . . . Unknown Exits Taken 5 | 1 1 1 1 1 . Scrap Searched 5 | . . . . . 5 Spaces Dug 1 | . . . . . 1 Terrain Destroyed 18 | . . . 17 . 1 Melee 1 | . . . . . 1 Projectile . | . . . . . . AOE 17 | . . . 17 . . Terrain Rammed . | . . . . . . Walls Destroyed . | . . . . . . Machines Disabled . | . . . . . . Actions | -11 -10 -9 -9 -9 -9 --------- Run | Yrd Mat Mat Sto Rec Scr Total 5387 | 68 656 1319 737 672 1935 Wait 316 | . 188 52 53 9 14 Move 4718 | 50 405 1150 574 644 1895 Hop . | . . . . . . Pick Up 48 | 5 9 16 9 2 7 Fast Attach 10 | 6 . 1 1 1 1 Attach 17 | 1 4 8 3 1 . Detach . | . . . . . . Swap 27 | . 1 10 12 1 3 Drop 35 | . . 7 15 3 10 Fire 192 | 6 47 74 54 11 . Melee 5 | . . . . . 5 Ram . | . . . . . . Kick . | . . . . . . Crush 3 | . 2 1 . . . Escape Stasis 16 | . . . 16 . . Rewire . | . . . . . . Trap . | . . . . . . Miscellaneous . | . . . . . . Route ------- -11/Scrapyard -10/Materials (discovered 4 exits: *Mat x2 / [*Min] / [*Sub]) -9/Materials (discovered 5 exits: [*Mat x2] / [*Min] / *Sto x2) -9/Storage (discovered 2 exits: [*Mat] / *Rec) -9/Recycling (discovered 2 exits: [*Fac] / *Scr) -9/Scraptown (discovered 2 exits: [*Fac x2]) History --------- Turn | Location | Event 2 | -11/Scrapyard | Met Revision 17 12 | -11/Scrapyard | Discovered new exit (range 16) 82 | -11/Scrapyard | Entered Materials 83 | -10/Materials | Met a group of wandering Federalists 198 | -10/Materials | Discovered new exit (range 8) 284 | -10/Materials | Discovered new exit (range 14) 311 | -10/Materials | Build established: Mutant 327 | -10/Materials | Discovered new exit (range 8) 947 | -10/Materials | Discovered new exit (range 10) 966 | -10/Materials | Lost 5 parts (2n1u2w) 989 | -10/Materials | Entered another Materials area 989 | -9/Materials | Evolved 2 slots: Weapon x2 1142 | -9/Materials | Discovered new exit (range 8) 1351 | -9/Materials | Build established: Skirmisher 1660 | -9/Materials | Discovered new exit (range 15) 1682 | -9/Materials | Central database locked down 1750 | -9/Materials | Build established: Scavenger-Skirmisher 2257 | -9/Materials | Discovered new exit (range 4) 2316 | -9/Materials | Build established: Skirmisher 2624 | -9/Materials | Build established: Scavenger-Skirmisher 2799 | -9/Materials | Discovered new exit (range 11) 2890 | -9/Materials | Core integrity fell below 50% 2951 | -9/Materials | Discovered new exit (range 15) 2972 | -9/Materials | Entered Storage 2987 | -9/Storage | Garrison activated, responded to threat 3213 | -9/Storage | Build established: Scavenger-Tank 3314 | -9/Storage | Lost 3 parts (1p2n) 3972 | -9/Storage | Discovered new exit (range 8) 4187 | -9/Storage | Used back door to open Recycling access 4187 | -9/Storage | Discovered new exit (range 5) 4195 | -9/Storage | Build established: Tank 4202 | -9/Storage | Entered Recycling 4609 | -9/Recycling | Discovered new exit (range 15) 5139 | -9/Recycling | Build established: Gunner 5269 | -9/Recycling | Scanned before Scraplab entrance 5292 | -9/Recycling | Entered Scraplab 5305 | -9/Recycling | Discovered new exit (range 2) 5308 | -9/Recycling | Entered Scraptown 5312 | -9/Scraptown | System corruption cleaned by C-Scrubber 5566 | -9/Scraptown | Visited Assassins FH 5617 | -9/Scraptown | Visited Cyclists 5709 | -9/Scraptown | Visited UFD Registry 5709 | -9/Scraptown | Registered with UFD as "Quantumbox" 5791 | -9/Scraptown | Entered Cyclist Reading Room 5796 | -9/Scraptown | Learned location of Zion (-7) 6230 | -9/Scraptown | Discovered new exit (range 11) 6462 | -9/Scraptown | Visited Symbiants 6482 | -9/Scraptown | Visited The Evicted 6507 | -9/Scraptown | Visited Red Mages 6650 | -9/Scraptown | Visited Cave Peace 6720 | -9/Scraptown | Visited Comm Corps 6932 | -9/Scraptown | Visited Junk Repository 7007 | -9/Scraptown | Visited Scrap Suit Storage 7075 | -9/Scraptown | Visited Science Guys 7169 | -9/Scraptown | Visited Junk Repository 7225 | -9/Scraptown | Visited Abandonware Association 7240 | -9/Scraptown | Learned abandonware demo "OVRCLOCK.EXE" 7273 | -9/Scraptown | Visited Cartography Club 7412 | -9/Scraptown | Discovered new exit (range 5) 7740 | -9/Scraptown | Visited Research Penetration Think Tank 7927 | -9/Scraptown | Visited DA-N13 Charitable Foundation 7987 | -9/Scraptown | Found DCF Scrap (30 items) 8320 | -9/Scraptown | Visited Derelict Rescue Squad 8445 | -9/Scraptown | Attacked by Scraptown defenders 8449 | -9/Scraptown | Learned location of Mines (-9) 8449 | -9/Scraptown | Learned location of Upper Caves (-5) 8449 | -9/Scraptown | Learned location of Testing (-3) 8449 | -9/Scraptown | Learned location of Quarantine (-2) 8449 | -9/Scraptown | Learned 8 Materials zone layouts 8449 | -9/Scraptown | Learned 4 Storage zone layouts 8449 | -9/Scraptown | Learned 4 Recycling zone layouts 8449 | -9/Scraptown | Learned 12 Lower Caves zone layouts 8449 | -9/Scraptown | Learned 12 Upper Caves zone layouts 8449 | -9/Scraptown | Learned location of 2 exits from Factory 8449 | -9/Scraptown | Learned location of 1 exit from Upper Caves 8452 | -9/Scraptown | Core integrity fell below 20% 8459 | -9/Scraptown | Destroyed by AT-8KD(x) with Makeshift Spear Last Messages --------------- Lower Caves entrances. Data stored: Lower Caves entrances (x2). >>Record "ACCESS/ARM=1" Armory entrance. Data stored: Armory entrances (x1). Bolt penetrates Wall. Disabling or destroying stationary machines or terrain requires that a single hit meet or exceed the object's Armor value. Inspect machines by right-clicking on them, and walls via Ctrl-RMB (or as any other object in Keyboard Mode). Hovering the cursor over an object also shows its Armor in the Scan window. Critical hit (Impale). Imp. Assault Rifle destroyed. Bolt penetrates Wall. Wall collapses. Penetrated by Bolt. Critical hit (Impale). Map ----- +----------------------------------------------------+ | ?????????????????????????????????????????????????? | | ?????????????????????????????????????????????????? | | ?????????????????????????????????????????????????? | | ?????????????????????????????????????????????????? | | ?????????????????????????????????????????????????? | | ?????????????????????????????????????????????????? | | ?????????????????????????????????????????????????? | | ?????????????????????????????????????????????????? | | ?????????????????????????????????????????????????? | | ????????????????????????#####????????????????????? | | ????????????????????????#"""#????????????????????? | | ############???####?????#" "#????????????????????? | | "##""|##"""#??## ##????# < #????????????????????? | | !##"" ##!!"#### ###### ##???????????????????? | | #???????????????????? | | #???????????????????? | | ############### ###########???????????????????? | | ??????????????## ##?????????????????????????????? | | ???????????????# #??????????????????????????????? | | ???????????????# #??????????###?????????????????? | | ?????########### #???????#### #?????????????????? | | ????#"""""""""## #???????# # #?????????????????? | | ????# " " " ## #???????## # #?????????????????? | | ????# ## #?????### #?????????????????? | | ##### ???#" ## #?????#X#### #?????????????????? | | !#!!# "??#" ## #?????#@# ## #?????????????????? | | !#[|# "###" ## #?????#xx #?????????????????? | | # # """"" ## ####### ;#####?????????????????? | | # ## # h #?????????????????? | | # ## # #?????????????????? | | ########## ##### ## ###########?????????????????? | | ########## ##### ## ##??????????????????????????? | | """""""""" """"" "" "##########?????????????????? | | "## " """"#?????????????????? | | "## ""#?????????????????? | | "## "#?????????????????? | | "## ""#?????????????????? | | ""#?????????????????? | | """""""""""""""" "## ""#?????????????????? | | """""""""""""""" "## """"""#?????????????????? | | ##############"" "##"""""""#?????????????????? | | ?????????????#"" "##########?????????????????? | | ?????????????#"" "##*[|*= #??????????????????? | | ????????????#"" "##*![%*=#??????????????????? | | ???????????###"" "##!=[|[=#??????????????????? | | ????######## #"" "##= *[###??????????????????? | | ??? ==!!=###??????????????????? | | ??? "##!*!! #??????????????????? | | ? ??######## #"" "## ! %/ #??????????????????? | | " ?????????###"" "## ! #??????????????????? | +----------------------------------------------------+ Best States ------------- Heat Dissipation 28 Energy Generation 14 Energy Capacity 265 Matter Stores 300 Matter Capacity 300 Sight Range 16 Robot Scan Range 14 Terrain Scan Density 10 Armor Coverage 225 Evasion (%) 40 Recoil Reduction 1 Matter Filtering 30 Authchip Count 3 Item Schematics ----------------- Imp. Targeting Computer | -9/Storage | Hacked Robot Schematics ------------------ None Fabricated ------------ Nothing Repaired ---------- Nothing Studied --------- Lgt. Assault Rifle | -9/Materials | Hacked Assault Rifle | -9/Materials | Hacked Hvy. Assault Rifle | -9/Materials | Hacked Alien Tech Used ----------------- None Achievements -------------- None Challenges ------------ None Game ------ Seed LatentAbsorptionJetlance Manual? 0 Play Time 00:57:28 Cumulative 70.0 hours Start 2026.08.30 @ 23:11:39 End 2026.08.31 @ 00:13:42 Sessions 1 Manual Loads 0 Difficulty Rogue Special Mode None Game No. 82 Rogue 82 Adventurer 0 Explorer 0 Win Type - Total 1 Types 1/0/0/0/0/0/0/0/0/0 Lore% 46 Gallery% 37 Achievement% 34 Wizard Run 0 Options --------- Layout 1 ASCII 0 Keyboard 0 Movement Mouse Keybinds 0 Fullscreen 2 Font 24/Smallcaps Map View 50x35 Zoom Use 0% Tactical HUD 0 Map Filters NONE Filters NONE Steam 1 RUN: d5f8b702-14ad-4315-b7a3-d2ea4cb1703e